bitfinex-derivatives/quotes_BTCF0:USTF0_20241015
["timestamp","ask_amount","ask_price","bid_price","bid_amount"]
[1728961172029,0.0008,65807.0,65806.0,0.262192]
[1728961173521,0.0008,65807.0,65806.0,0.229192]
[1728961175026,0.0008,65807.0,65806.0,0.219192]
[1728961176124,0.076791,65807.0,65806.0,0.1432]
[1728961177531,0.076791,65807.0,65806.0,0.1532]
[1728961177922,0.076791,65807.0,65806.0,0.1432]
[1728961178831,0.076791,65807.0,65806.0,0.0332]
[1728961179032,0.11401583,65807.0,65806.0,0.1532]
[1728961179231,0.21349621,65807.0,65806.0,0.1532]
[1728961179435,0.16067463,65807.0,65806.0,0.1532]
[1728961179937,0.16067463,65807.0,65806.0,0.1432]
[1728961181738,0.16067217,65807.0,65806.0,0.1432]
[1728961184538,0.16067217,65807.0,65806.0,0.1532]
[1728961184847,0.31256685,65807.0,65806.0,0.1432]
[1728961185439,0.31256685,65807.0,65806.0,0.0332]
[1728961185745,0.31256685,65807.0,65806.0,0.1532]
[1728961186136,0.16067217,65807.0,65806.0,0.1532]
[1728961186646,0.16067192,65807.0,65806.0,0.1532]
[1728961186842,0.16067192,65807.0,65806.0,0.1432]
[1728961187042,0.076791,65807.0,65806.0,0.1432]
[1728961187644,0.076791,65807.0,65806.0,0.1532]
[1728961188846,0.076791,65807.0,65806.0,0.1432]
[1728961190643,0.076791,65807.0,65806.0,0.1532]
[1728961195863,0.076791,65807.0,65806.0,0.1432]
[1728961196459,0.076791,65807.0,65806.0,0.1532]
[1728961196741,0.076791,65807.0,65806.0,0.1522]
[1728961196951,0.076791,65807.0,65806.0,0.1532]
[1728961198650,0.076791,65807.0,65806.0,0.0024]
[1728961199663,0.076791,65807.0,65806.0,0.04802513]
[1728961200850,0.076791,65807.0,65806.0,0.04802509]
[1728961201051,0.076791,65807.0,65806.0,0.0024]
[1728961201250,0.076791,65807.0,65801.0,0.06123102]
[1728961201251,0.075996,65802.0,65801.0,0.0004]
[1728961201457,0.075996,65802.0,65791.0,0.44087862]
[1728961201458,0.076001,65798.0,65797.0,0.02800882]
[1728961201645,0.12,65799.0,65796.0,0.0004]
[1728961201846,0.076002,65797.0,65796.0,0.0004]
[1728961202156,0.11323406,65797.0,65796.0,0.0004]
[1728961202346,0.15990192,65797.0,65796.0,0.02769415]
[1728961202663,0.15990192,65797.0,65796.0,0.0004]
[1728961203652,0.15990192,65797.0,65796.0,0.02841156]
[1728961203653,0.2800939,65797.0,65796.0,0.02841156]
[1728961203847,0.28053295,65797.0,65796.0,0.02941156]
[1728961204649,0.28053295,65797.0,65796.0,0.03041156]
[1728961207543,0.28053295,65797.0,65796.0,0.03001156]
[1728961209154,0.10406194,65797.0,65796.0,0.03001156]
[1728961213153,0.10406194,65797.0,65796.0,0.15001156]
[1728961217152,0.18796382,65797.0,65796.0,0.03001156]
[1728961217357,0.18796382,65797.0,65796.0,0.002]
[1728961218157,0.32418958,65797.0,65796.0,0.002]
[1728961218660,0.18796382,65797.0,65796.0,0.002]
[1728961219249,0.18796856,65797.0,65796.0,0.002]
[1728961219456,0.24250393,65797.0,65796.0,0.002]
[1728961219755,0.18796856,65797.0,65796.0,0.002]
[1728961224362,0.10406194,65797.0,65796.0,0.002]
[1728961225759,0.19176194,65797.0,65796.0,0.002]
[1728961226862,0.15896194,65797.0,65796.0,0.002]
[1728961227373,0.15896194,65797.0,65796.0,0.04747806]
[1728961228170,0.03896194,65797.0,65796.0,0.04747806]
[1728961228476,0.03896194,65797.0,65796.0,0.002]
[1728961228859,0.001,65797.0,65796.0,0.122]
[1728961229166,0.001,65797.0,65796.0,0.140303]
[1728961229374,0.001,65797.0,65796.0,0.34738687]
[1728961229669,0.001,65797.0,65796.0,0.25616473]
[1728961232265,0.001,65797.0,65796.0,0.140303]
[1728961232572,0.08489373,65797.0,65796.0,0.140303]
[1728961233074,0.16781869,65797.0,65796.0,0.140303]
[1728961233264,0.205048,65797.0,65796.0,0.140303]
[1728961233468,0.25171242,65797.0,65796.0,0.140303]
[1728961233673,0.25171351,65797.0,65796.0,0.140303]
[1728961233875,0.08489482,65797.0,65796.0,0.140303]
[1728961234776,0.08489482,65797.0,65796.0,0.0643]
[1728961235370,0.15262747,65797.0,65796.0,0.0643]
[1728961235572,0.19929249,65797.0,65796.0,0.0643]
[1728961235773,0.23652229,65797.0,65796.0,0.0643]
[1728961236073,0.16089682,65797.0,65796.0,0.0643]
[1728961238572,0.31252761,65797.0,65796.0,0.0643]
[1728961239173,0.22862947,65797.0,65796.0,0.0643]
[1728961239379,0.077002,65797.0,65796.0,0.0643]
[1728961243573,0.077002,65797.0,65796.0,0.12508328]
[1728961247274,0.077002,65797.0,65796.0,0.0643]
[1728961248184,0.197002,65797.0,65796.0,0.002]
[1728961248377,0.2809004,65797.0,65796.0,0.002]
[1728961248577,0.33543044,65797.0,65796.0,0.002]
[1728961251082,0.2809004,65797.0,65796.0,0.002]
[1728961252976,0.23423339,65797.0,65796.0,0.002]
[1728961254280,0.197002,65797.0,65796.0,0.002]
[1728961254488,0.197002,65797.0,65796.0,0.04758442]
[1728961254679,0.197002,65797.0,65796.0,0.002]
[1728961260092,0.317002,65797.0,65796.0,0.002]
[1728961260290,0.197002,65797.0,65796.0,0.002]
[1728961260585,0.317002,65797.0,65796.0,0.002]
[1728961260797,0.197002,65797.0,65796.0,0.002]
[1728961260997,0.317002,65797.0,65796.0,0.002]
[1728961261294,0.317002,65797.0,65788.0,0.0035]
[1728961261295,0.076011,65789.0,65788.0,0.0035]
[1728961261492,0.076018,65783.0,65781.0,0.04559953]
[1728961261799,0.19602,65782.0,65781.0,0.04559953]
[1728961262392,0.19602,65782.0,65780.0,0.04559953]
[1728961262698,0.19602,65782.0,65779.0,0.196023]
[1728961262699,0.19602,65782.0,65781.0,0.04559953]
[1728961262912,0.19602,65782.0,65778.0,0.04684861]
[1728961263091,0.12,65779.0,65775.0,0.07756861]
[1728961263288,0.076026,65776.0,65775.0,0.0272464]
[1728961263487,0.076026,65776.0,65774.0,0.04557186]
[1728961264090,0.076026,65776.0,65771.0,0.25681528]
[1728961264091,0.12,65775.0,65773.0,0.04557186]
[1728961264293,0.12,65775.0,65771.0,0.1923033]
[1728961264697,0.07603,65773.0,65771.0,0.1923033]
[1728961265290,0.07603,65773.0,65771.0,0.14673144]
[1728961265489,0.07603,65773.0,65771.0,0.16073144]
[1728961265689,0.07603,65773.0,65771.0,0.17473144]
[1728961266299,0.07603,65773.0,65771.0,0.16073144]
[1728961266498,0.07603,65773.0,65771.0,0.17473144]
[1728961269788,0.076031,65772.0,65771.0,0.17473144]
[1728961270893,0.076031,65772.0,65771.0,0.16073144]
[1728961271305,0.076031,65772.0,65771.0,0.17473144]
[1728961272495,0.076027,65776.0,65771.0,0.17473144]
[1728961272704,0.076027,65776.0,65775.0,0.0004]
[1728961274399,0.076027,65776.0,65775.0,0.0144]
[1728961274999,0.0035,65781.0,65775.0,0.0144]
[1728961275199,0.076023,65780.0,65778.0,0.12]
[1728961275501,0.076023,65780.0,65779.0,0.0326]
[1728961278002,0.076023,65780.0,65779.0,0.0406]
[1728961278409,0.076023,65780.0,65779.0,0.0506]
[1728961279513,0.076023,65780.0,65779.0,0.11138328]
[1728961280609,0.36172,65783.0,65782.0,0.07602]
[1728961280913,0.3608,65783.0,65782.0,0.19642]
[1728961282013,0.3608,65783.0,65782.0,0.20142]
[1728961282216,0.3608,65783.0,65782.0,0.20842]
[1728961282416,0.076017,65785.0,65782.0,0.20842]
[1728961282721,0.076017,65785.0,65784.0,0.0610633]
[1728961283411,0.076017,65785.0,65784.0,0.1370803]
[1728961283607,0.076017,65785.0,65784.0,0.076417]
[1728961283811,0.086613,65788.0,65787.0,0.076014]
[1728961284014,0.076013,65788.0,65787.0,0.196414]
[1728961284312,0.076013,65788.0,65787.0,0.25708951]
[1728961284514,0.076013,65788.0,65787.0,0.12192054]
[1728961285221,0.076013,65788.0,65787.0,0.076414]
[1728961285720,0.076013,65788.0,65787.0,0.12292054]
[1728961286111,0.076013,65788.0,65787.0,0.077414]
[1728961286531,0.0106,65791.0,65790.0,0.07601]
[1728961286722,0.076008,65792.0,65790.0,0.0004]
[1728961287023,0.076008,65792.0,65791.0,0.076409]
[1728961287942,0.076008,65792.0,65791.0,0.1371247]
[1728961288316,0.076008,65792.0,65791.0,0.076409]
[1728961288516,0.077008,65792.0,65791.0,0.076409]
[1728961290217,0.078008,65792.0,65791.0,0.076409]
[1728961290618,0.078008,65792.0,65791.0,0.12193988]
[1728961291022,0.078008,65792.0,65791.0,0.076409]
[1728961291326,0.078008,65792.0,65791.0,0.0459238]
[1728961291720,0.078008,65792.0,65791.0,0.0004]
[1728961291721,0.16191716,65792.0,65791.0,0.0004]
[1728961292227,0.32845215,65792.0,65791.0,0.0004]
[1728961293122,0.21645633,65792.0,65791.0,0.0004]
[1728961293316,0.16191716,65792.0,65791.0,0.0004]
[1728961295824,0.16191543,65792.0,65791.0,0.0004]
[1728961297925,0.16191543,65792.0,65788.0,0.071812]
[1728961298130,0.16649701,65790.0,65788.0,0.071812]
[1728961298326,0.08390743,65789.0,65788.0,0.071812]
[1728961299729,0.078008,65792.0,65788.0,0.071812]
[1728961299928,0.077008,65792.0,65791.0,0.04590627]
[1728961300639,0.077008,65792.0,65791.0,0.0004]
[1728961300926,0.076008,65792.0,65791.0,0.04590896]
[1728961301234,0.077008,65792.0,65791.0,0.04590896]
[1728961301435,0.077008,65792.0,65791.0,0.0004]
[1728961301627,0.078008,65792.0,65791.0,0.0004]
[1728961304824,0.078008,65792.0,65791.0,0.045935]
[1728961305033,0.078008,65792.0,65791.0,0.0004]
[1728961306723,0.12468414,65792.0,65791.0,0.0004]
[1728961306926,0.22933901,65792.0,65791.0,0.0004]
[1728961307132,0.16192281,65792.0,65791.0,0.0004]
[1728961307332,0.31325382,65792.0,65791.0,0.0004]
[1728961307730,0.21646339,65792.0,65791.0,0.0004]
[1728961307930,0.32851719,65792.0,65791.0,0.0004]
[1728961308129,0.21646339,65792.0,65791.0,0.0004]
[1728961308339,0.16192281,65792.0,65791.0,0.0004]
[1728961310323,0.078008,65792.0,65791.0,0.0004]
[1728961310738,0.1619214,65792.0,65791.0,0.0004]
[1728961311535,0.6179214,65792.0,65791.0,0.0004]
[1728961311730,0.6724636,65792.0,65791.0,0.0004]
[1728961311936,0.2164636,65792.0,65791.0,0.0004]
[1728961312132,0.1619214,65792.0,65791.0,0.0004]
[1728961312334,0.076013,65788.0,65787.0,0.0004]
[1728961312536,0.6407264,65788.0,65787.0,0.0004]
[1728961314245,0.2799264,65788.0,65787.0,0.0014]
[1728961314538,0.43144272,65788.0,65787.0,0.0014]
[1728961314844,0.196013,65788.0,65787.0,0.0014]
[1728961317738,0.076013,65788.0,65787.0,0.0014]
[1728961317943,0.196013,65788.0,65787.0,0.0014]
[1728961321635,0.076013,65788.0,65787.0,0.0014]
[1728961321834,0.15992615,65788.0,65787.0,0.0014]
[1728961323647,0.27992689,65788.0,65787.0,0.0014]
[1728961323838,0.33446652,65788.0,65787.0,0.0014]
[1728961326034,0.27992689,65788.0,65787.0,0.0014]
[1728961328254,0.196013,65788.0,65787.0,0.0014]
[1728961328443,0.27992926,65788.0,65787.0,0.0014]
[1728961329847,0.196013,65788.0,65787.0,0.0014]
[1728961332146,0.076013,65788.0,65787.0,0.197414]
[1728961332453,0.076013,65788.0,65787.0,0.077414]
[1728961334856,0.076013,65788.0,65787.0,0.12302472]
[1728961335651,0.0106,65794.0,65787.0,0.1214]
[1728961335950,0.0106,65794.0,65793.0,0.196407]
[1728961336150,0.3608,65796.0,65793.0,0.1204]
[1728961336452,0.3608,65796.0,65795.0,0.0004]
[1728961336648,0.436803,65796.0,65795.0,0.0004]
[1728961336840,0.57524152,65796.0,65795.0,0.0004]
[1728961337751,0.69624152,65796.0,65795.0,0.0014]
[1728961338072,0.64171074,65796.0,65795.0,0.0014]
[1728961338250,0.64271074,65796.0,65795.0,0.0024]
[1728961338439,0.52271074,65796.0,65795.0,0.0024]
[1728961342368,0.57724764,65796.0,65795.0,0.0024]
[1728961342941,0.57724885,65796.0,65795.0,0.0024]
[1728961343556,0.57724885,65796.0,65795.0,0.00190459]
[1728961344947,0.47603904,65796.0,65795.0,0.00190459]
[1728961345951,0.438803,65796.0,65795.0,0.00190459]
[1728961348845,0.47603926,65796.0,65795.0,0.00190459]
[1728961350360,0.86953926,65796.0,65795.0,0.00190459]
[1728961351067,0.076013,65788.0,65787.0,0.0014]
[1728961351366,0.556813,65788.0,65787.0,0.0014]
[1728961351660,2.056813,65788.0,65787.0,0.0014]
[1728961352651,0.556813,65788.0,65787.0,0.0014]
[1728961353949,0.59405427,65788.0,65787.0,0.0014]
[1728961354150,2.09405427,65788.0,65787.0,0.0014]
[1728961355560,2.12084962,65788.0,65787.0,0.0014]
[1728961355950,2.08360835,65788.0,65787.0,0.0014]
[1728961357859,2.24085028,65788.0,65787.0,0.0014]
[1728961358062,0.076018,65783.0,65782.0,0.0004]
[1728961359461,0.076018,65783.0,65782.0,0.0054]
[1728961359661,0.076018,65783.0,65782.0,0.0124]
[1728961359662,0.196018,65783.0,65782.0,0.0124]
[1728961359961,0.076025,65777.0,65776.0,0.0313]
[1728961360451,0.15995248,65777.0,65776.0,0.0313]
[1728961361257,0.16095248,65777.0,65776.0,0.0483]
[1728961361462,0.16095248,65777.0,65776.0,0.017]
[1728961361959,0.38214292,65777.0,65776.0,0.017]
[1728961362164,0.2155064,65777.0,65776.0,0.017]
[1728961362564,0.38188188,65777.0,65776.0,0.017]
[1728961362862,0.32732728,65777.0,65776.0,0.017]
[1728961363071,0.3818817,65777.0,65776.0,0.017]
[1728961363367,0.32732728,65777.0,65776.0,0.017]
[1728961363762,0.16095248,65777.0,65776.0,0.017]
[1728961364159,0.16095248,65777.0,65776.0,0.009]
[1728961364360,0.11426929,65777.0,65776.0,0.006]
[1728961364562,0.16195732,65777.0,65776.0,0.014]
[1728961365055,0.20593318,65777.0,65765.0,0.0035]
[1728961365261,0.076039,65765.0,65764.0,0.0035]
[1728961365563,0.076043,65762.0,65758.0,0.1512]
[1728961365870,0.03724429,65761.0,65760.0,0.076045]
[1728961366063,0.03725155,65761.0,65760.0,0.076045]
[1728961366466,0.076043,65762.0,65760.0,0.076045]
[1728961366662,0.076043,65762.0,65761.0,0.1204]
[1728961366863,0.11329403,65762.0,65761.0,0.1204]
[1728961367059,0.076043,65762.0,65761.0,0.1204]
[1728961367462,0.436843,65762.0,65761.0,0.1204]
[1728961367975,0.556843,65762.0,65761.0,0.0004]
[1728961368165,0.558843,65762.0,65761.0,0.0144]
[1728961369568,0.3628,65762.0,65761.0,0.1344]
[1728961369760,0.002,65762.0,65761.0,0.1344]
[1728961370964,0.002,65762.0,65761.0,0.210444]
[1728961374766,0.122,65762.0,65761.0,0.090444]
[1728961376072,0.198043,65762.0,65761.0,0.0144]
[1728961378878,0.23529853,65762.0,65761.0,0.0144]
[1728961379072,1.73529853,65762.0,65761.0,0.0144]
[1728961379971,1.73429853,65762.0,65761.0,0.0064]
[1728961380381,1.73329853,65762.0,65761.0,0.0044]
[1728961380674,1.73429812,65762.0,65761.0,0.0104]
[1728961381879,1.697043,65762.0,65761.0,0.0104]
[1728961382178,1.65898109,65762.0,65761.0,0.0104]
[1728961384269,2.01978109,65762.0,65761.0,0.0104]
[1728961387379,1.65898109,65762.0,65761.0,0.0104]
[1728961388175,2.01978109,65762.0,65761.0,0.0104]
[1728961390072,2.10373421,65762.0,65761.0,0.0104]
[1728961394175,2.1583045,65762.0,65761.0,0.0104]
[1728961395085,2.10373705,65762.0,65761.0,0.0104]
[1728961395975,2.15830408,65762.0,65761.0,0.0104]
[1728961397282,2.01978109,65762.0,65761.0,0.0104]
[1728961408191,1.65898109,65762.0,65761.0,0.0104]
[1728961408584,2.01978109,65762.0,65761.0,0.0104]
[1728961410088,1.937843,65762.0,65761.0,0.0104]
[1728961410689,0.437843,65762.0,65761.0,0.0104]
[1728961410886,0.437843,65762.0,65761.0,0.0408]
[1728961411083,0.197043,65762.0,65761.0,0.116844]
[1728961411388,0.197043,65762.0,65761.0,0.0408]
[1728961412191,0.39504214,65762.0,65761.0,0.0408]
[1728961412383,0.28099004,65762.0,65761.0,0.0408]
[1728961417990,0.43229511,65762.0,65761.0,0.0408]
[1728961418594,0.28099004,65762.0,65761.0,0.0408]
[1728961420283,0.197043,65762.0,65761.0,0.0408]
[1728961424396,0.557843,65762.0,65761.0,0.0408]
[1728961424798,0.557843,65762.0,65761.0,0.0104]
[1728961426994,0.58538182,65762.0,65761.0,0.0104]
[1728961427188,0.7238982,65762.0,65761.0,0.0104]
[1728961430794,0.66933352,65762.0,65761.0,0.0104]
[1728961430990,0.5217947,65762.0,65761.0,0.0104]
[1728961432795,0.5763581,65762.0,65761.0,0.0104]
[1728961434995,0.5217947,65762.0,65761.0,0.0104]
[1728961435200,0.437843,65762.0,65761.0,0.0104]
[1728961449702,0.437843,65762.0,65761.0,0.086444]
[1728961449903,0.3618,65762.0,65761.0,0.086444]
[1728961450110,0.3618,65762.0,65761.0,0.116944]
[1728961450301,0.44574591,65762.0,65761.0,0.0409]
[1728961450502,0.52178891,65762.0,65761.0,0.0409]
[1728961450905,0.79324573,65762.0,65761.0,0.0409]
[1728961451619,0.64178891,65762.0,65761.0,0.0409]
[1728961451802,0.79324573,65762.0,65761.0,0.0409]
[1728961452299,0.79324438,65762.0,65761.0,0.0409]
[1728961453510,0.79328185,65762.0,65761.0,0.0409]
[1728961453705,0.64178891,65762.0,65761.0,0.0409]
[1728961454100,0.79327908,65762.0,65761.0,0.0409]
[1728961454615,0.82045768,65762.0,65761.0,0.0409]
[1728961455099,0.66896751,65762.0,65761.0,0.0409]
[1728961456714,0.66896751,65762.0,65761.0,0.0104]
[1728961457212,0.5850216,65762.0,65761.0,0.0104]
[1728961458608,0.7050216,65762.0,65761.0,0.0104]
[1728961459010,2.12227935,65762.0,65761.0,0.0104]
[1728961459318,2.0850216,65762.0,65761.0,0.0104]
[1728961459819,2.2050216,65762.0,65761.0,0.0104]
[1728961460015,2.0850216,65762.0,65761.0,0.0104]
[1728961460422,2.0890216,65762.0,65761.0,0.0064]
[1728961461221,2.0910216,65762.0,65761.0,0.0004]
[1728961465321,2.22954478,65762.0,65761.0,0.0004]
[1728961465815,2.22954481,65762.0,65761.0,0.0004]
[1728961470217,0.076054,65752.0,65751.0,0.007]
[1728961470413,0.076054,65752.0,65747.0,0.08726]
[1728961470414,0.076055,65751.0,65747.0,0.07606]
[1728961470615,0.08395585,65750.0,65747.0,0.07606]
[1728961470820,0.08396017,65749.0,65747.0,0.10376995]
[1728961471014,0.08396017,65748.0,65747.0,0.10376995]
[1728961471814,0.23528975,65748.0,65747.0,0.10376995]
[1728961472221,0.31134875,65748.0,65747.0,0.02770995]
[1728961472530,0.07606,65747.0,65746.0,0.09303067]
[1728961472721,0.19606,65747.0,65746.0,0.09303067]
[1728961473519,0.19606,65747.0,65746.0,0.0323]
[1728961473714,0.19706,65747.0,65746.0,0.18018594]
[1728961473927,0.19706,65747.0,65746.0,0.20808132]
[1728961474135,0.19806,65747.0,65746.0,0.21608132]
[1728961474719,0.19806,65747.0,65746.0,0.15525638]
[1728961474914,0.19806,65747.0,65746.0,0.2160791]
[1728961476129,0.19806,65747.0,65746.0,0.11212127]
[1728961476334,0.19806,65747.0,65746.0,0.0513]
[1728961476621,0.19806,65747.0,65746.0,0.127361]
[1728961478528,0.19806,65747.0,65746.0,0.0513]
[1728961480324,0.23531877,65747.0,65746.0,0.0513]
[1728961480525,0.23531864,65747.0,65746.0,0.0513]
[1728961482727,0.19806,65747.0,65746.0,0.0513]
[1728961484327,0.002,65747.0,65746.0,0.1713]
[1728961484725,0.07806,65747.0,65746.0,0.127361]
[1728961484928,0.002,65747.0,65746.0,0.247361]
[1728961487042,0.03925814,65747.0,65746.0,0.247361]
[1728961487428,0.07806,65747.0,65746.0,0.2872465]
[1728961490336,0.07806,65747.0,65746.0,0.28724793]
[1728961491138,0.3608,65752.0,65746.0,1.34352872]
[1728961491327,0.3608,65752.0,65751.0,0.0004]
[1728961491640,0.436855,65752.0,65751.0,0.0764617]
[1728961491938,0.436855,65752.0,65751.0,0.19240142]
[1728961492540,0.437855,65752.0,65751.0,0.19240142]
[1728961493130,0.436855,65752.0,65751.0,0.19240142]
[1728961493337,0.438855,65752.0,65751.0,0.22623701]
[1728961493526,0.438855,65752.0,65751.0,0.15017531]
[1728961493928,0.438855,65752.0,65751.0,0.15817531]
[1728961494331,0.3628,65752.0,65751.0,0.23423152]
[1728961494532,0.3628,65752.0,65751.0,0.17913556]
[1728961494533,0.002,65752.0,65751.0,0.17913556]
[1728961494836,0.002,65752.0,65751.0,0.17913381]
[1728961495039,0.002,65752.0,65751.0,0.11829059]
[1728961497136,0.002,65752.0,65751.0,0.47909059]
[1728961500142,0.002,65752.0,65751.0,1.53537059]
[1728961501232,0.002,65752.0,65751.0,1.17457059]
[1728961501737,0.002,65752.0,65751.0,0.57457059]
[1728961501932,0.002,65752.0,65751.0,0.11829059]
[1728961502348,0.002,65752.0,65751.0,0.07521531]
[1728961502548,0.078054,65752.0,65751.0,0.0144]
[1728961503155,0.16201127,65752.0,65751.0,0.0144]
[1728961503346,0.21657962,65752.0,65751.0,0.0144]
[1728961503646,0.16201132,65752.0,65751.0,0.0144]
[1728961507043,0.19511132,65752.0,65751.0,0.0144]
[1728961507460,0.27741364,65752.0,65751.0,0.0144]
[1728961507641,0.36137096,65752.0,65751.0,0.0144]
[1728961508450,0.36137553,65752.0,65751.0,0.0144]
[1728961509338,0.19511589,65752.0,65751.0,0.0144]
[1728961509542,0.111154,65752.0,65751.0,0.09045621]
[1728961510139,0.111154,65752.0,65751.0,0.20640308]
[1728961510341,0.111154,65752.0,65751.0,0.0144]
[1728961512451,0.231154,65752.0,65751.0,0.0144]
[1728961514462,0.231154,65752.0,65751.0,0.09045621]
[1728961514748,0.231154,65752.0,65751.0,0.1303441]
[1728961515352,0.231154,65752.0,65751.0,0.13034393]
[1728961516549,0.111154,65752.0,65751.0,0.13034393]
[1728961517640,0.111154,65752.0,65751.0,0.0144]
[1728961521349,0.11111362,65752.0,65751.0,0.0144]
[1728961522751,0.23111362,65752.0,65751.0,0.0144]
[1728961524754,0.26837143,65752.0,65751.0,0.0144]
[1728961527956,0.26837239,65752.0,65751.0,0.0144]
[1728961532653,0.23111362,65752.0,65751.0,0.0144]
[1728961533666,0.19801362,65752.0,65751.0,0.0144]
[1728961536451,0.19801362,65752.0,65751.0,0.07523373]
[1728961538347,0.19801362,65752.0,65751.0,0.0144]
[1728961539553,0.19801362,65752.0,65751.0,0.06005919]
[1728961539759,0.28197354,65752.0,65751.0,0.0144]
[1728961540065,0.33654356,65752.0,65751.0,0.0144]
[1728961540958,0.28197354,65752.0,65751.0,0.0144]
[1728961542650,0.28197319,65752.0,65751.0,0.0144]
[1728961544357,0.28197319,65752.0,65751.0,0.0478]
[1728961545960,0.23527215,65752.0,65751.0,0.0478]
[1728961547559,0.23527082,65752.0,65751.0,0.0478]
[1728961547767,0.19801362,65752.0,65751.0,0.0478]
[1728961550765,0.19801362,65752.0,65751.0,0.09346076]
[1728961550968,0.19801362,65752.0,65751.0,0.0478]
[1728961551476,0.22861362,65752.0,65751.0,0.0478]
[1728961551963,0.22861362,65752.0,65751.0,0.0398]
[1728961552164,0.22761362,65752.0,65751.0,0.0438]
[1728961552664,0.226654,65752.0,65751.0,0.0408]
[1728961553962,0.587454,65752.0,65751.0,0.0408]
[1728961554872,0.72599094,65752.0,65751.0,0.0408]
[1728961555374,0.67141816,65752.0,65751.0,0.0408]
[1728961555963,0.82260429,65752.0,65751.0,0.0408]
[1728961556366,0.67141816,65752.0,65751.0,0.0408]
[1728961558771,0.67141819,65752.0,65751.0,0.0408]
[1728961558963,0.82257969,65752.0,65751.0,0.0408]
[1728961559859,0.67141819,65752.0,65751.0,0.0408]
[1728961560765,0.72599121,65752.0,65751.0,0.0408]
[1728961560962,0.67141819,65752.0,65751.0,0.0408]
[1728961561168,0.67142002,65752.0,65751.0,0.0408]
[1728961562583,0.82249826,65752.0,65751.0,0.0408]
[1728961562777,0.587454,65752.0,65751.0,0.0408]
[1728961569876,0.72600258,65752.0,65751.0,0.0408]
[1728961570278,0.84600258,65752.0,65751.0,0.0408]
[1728961570571,0.72600258,65752.0,65751.0,0.0408]
[1728961571477,0.72600258,65752.0,65741.0,0.0035]
[1728961571478,0.076066,65742.0,65741.0,0.0035]
[1728961571701,0.076069,65740.0,65738.0,0.0306]
[1728961571896,0.20397122,65739.0,65738.0,0.0306]
[1728961572691,0.28004022,65739.0,65738.0,0.0306]
[1728961573200,0.44615737,65739.0,65738.0,0.0306]
[1728961573403,0.28104022,65739.0,65738.0,0.0366]
[1728961573596,0.44715737,65739.0,65738.0,0.0366]
[1728961573797,0.28104022,65739.0,65738.0,0.0366]
[1728961574101,0.33561954,65739.0,65738.0,0.0366]
[1728961574299,0.44715737,65739.0,65738.0,0.0366]
[1728961574499,0.28104022,65739.0,65738.0,0.0366]
[1728961575099,0.28104022,65739.0,65738.0,0.0406]
[1728961575498,0.28104472,65739.0,65738.0,0.0406]
[1728961575695,0.33562535,65739.0,65738.0,0.0406]
[1728961576199,0.47431468,65739.0,65738.0,0.0406]
[1728961576513,0.52889531,65739.0,65738.0,0.0406]
[1728961577192,0.47431468,65739.0,65738.0,0.0406]
[1728961577497,0.52889479,65739.0,65738.0,0.0406]
[1728961577701,0.52888559,65739.0,65738.0,0.0406]
[1728961577903,0.35225718,65739.0,65738.0,0.24778733]
[1728961578293,0.35225718,65739.0,65738.0,0.15656876]
[1728961578699,0.35225718,65739.0,65738.0,0.24778712]
[1728961579303,0.18619989,65739.0,65738.0,0.24778712]
[1728961579906,0.18619989,65739.0,65738.0,0.15656876]
[1728961580210,0.18619989,65739.0,65738.0,0.24778967]
[1728961580401,0.18619989,65739.0,65738.0,0.24779196]
[1728961581799,0.18619989,65739.0,65738.0,0.15657105]
[1728961584800,0.18619989,65739.0,65738.0,0.0406]
[1728961585005,0.54699989,65739.0,65738.0,0.0406]
[1728961591615,0.18619989,65739.0,65738.0,0.0406]
[1728961592111,0.54699989,65739.0,65738.0,0.0406]
[1728961592909,0.68555889,65739.0,65738.0,0.0406]
[1728961594911,0.27017742,65739.0,65738.0,0.0406]
[1728961595110,0.63097742,65739.0,65738.0,0.0406]
[1728961595319,0.79712309,65739.0,65738.0,0.0406]
[1728961595711,2.29712309,65739.0,65738.0,0.0406]
[1728961596112,2.13097742,65739.0,65738.0,0.0406]
[1728961597312,2.28203614,65739.0,65738.0,0.0406]
[1728961597514,2.13097742,65739.0,65738.0,0.0406]
[1728961598820,2.28203614,65739.0,65738.0,0.0406]
[1728961599419,2.13097742,65739.0,65738.0,0.0406]
[1728961600019,2.13097742,65739.0,65738.0,0.15657107]
[1728961600020,2.04699989,65739.0,65738.0,0.15657107]
[1728961603017,0.54699989,65739.0,65738.0,0.12597107]
[1728961605124,0.54699989,65739.0,65738.0,0.01]
[1728961605435,0.54699989,65739.0,65738.0,0.12597145]
[1728961606320,0.18619989,65739.0,65738.0,0.12597145]
[1728961606524,0.54699989,65739.0,65738.0,0.12597145]
[1728961607120,0.18619989,65739.0,65738.0,0.12597145]
[1728961607828,0.54699989,65739.0,65738.0,0.12597145]
[1728961608018,0.54699989,65739.0,65738.0,0.01]
[1728961609020,0.54699989,65739.0,65738.0,0.05567603]
[1728961610419,0.54699989,65739.0,65738.0,0.01]
[1728961615031,0.6309752,65739.0,65738.0,0.01]
[1728961615626,0.8517009,65739.0,65738.0,0.01]
[1728961616025,0.79712087,65739.0,65738.0,0.01]
[1728961616231,0.6309752,65739.0,65738.0,0.01]
[1728961616621,0.2701752,65739.0,65738.0,0.01]
[1728961617225,0.6309752,65739.0,65738.0,0.01]
[1728961617628,0.2701752,65739.0,65738.0,0.01]
[1728961617832,0.6309752,65739.0,65738.0,0.01]
[1728961618533,0.68555523,65739.0,65738.0,0.01]
[1728961618733,0.57642434,65739.0,65738.0,0.01]
[1728961618934,0.03826456,65739.0,65738.0,0.08607]
[1728961620028,0.03826358,65739.0,65738.0,0.08607]
[1728961621026,0.08497064,65739.0,65738.0,0.08607]
[1728961622325,0.20497064,65739.0,65738.0,0.08607]
[1728961622526,0.15826358,65739.0,65738.0,0.08607]
[1728961622932,0.121,65739.0,65738.0,0.08607]
[1728961623930,0.001,65739.0,65738.0,0.08607]